bitfinex-derivatives/quotes_BTCF0:USTF0_20241224
["timestamp","ask_amount","ask_price","bid_price","bid_amount"]
[1735003886380,0.103689,94475.0,94462.0,0.052996]
[1735003886583,0.01044039,94471.0,94463.0,0.052995]
[1735003886775,0.01044039,94471.0,94467.0,0.052993]
[1735003887077,0.0468,94480.0,94467.0,0.413793]
[1735003887475,0.01068537,94482.0,94467.0,0.413793]
[1735003888088,0.3608,94487.0,94467.0,0.6608]
[1735003888268,0.3608,94487.0,94485.0,0.052983]
[1735003889479,0.3618,94487.0,94485.0,0.061983]
[1735003889685,0.052982,94486.0,94485.0,0.009]
[1735003890881,0.053982,94486.0,94485.0,0.014]
[1735003891084,1.374982,94486.0,94485.0,0.014]
[1735003891780,0.052986,94481.0,94473.0,0.052989]
[1735003891983,0.0499,94480.0,94473.0,0.052989]
[1735003892186,0.3608,94474.0,94458.0,0.052998]
[1735003892486,0.3608,94474.0,94450.0,0.053002]
[1735003892487,0.052998,94459.0,94450.0,0.053002]
[1735003892880,1.32,94458.0,94449.0,0.3608]
[1735003893076,0.052998,94459.0,94449.0,0.3608]
[1735003893975,0.052998,94459.0,94453.0,0.053001]
[1735003894178,0.003,94458.0,94449.0,0.46856299]
[1735003894577,0.003,94458.0,94457.0,0.36092559]
[1735003894783,0.01,94459.0,94458.0,0.052998]
[1735003895283,0.003,94459.0,94458.0,0.052998]
[1735003896287,0.052993,94468.0,94458.0,0.052998]
[1735003896579,0.052993,94468.0,94457.0,0.36092559]
[1735003896781,0.052993,94468.0,94459.0,0.052997]
[1735003896986,0.052993,94468.0,94457.0,0.36092559]
[1735003897287,0.052993,94468.0,94460.0,0.052997]
[1735003897686,0.054993,94468.0,94460.0,0.052997]
[1735003898189,0.052993,94468.0,94460.0,0.052997]
[1735003898780,0.052993,94468.0,94460.0,0.054997]
[1735003899186,0.052993,94468.0,94462.0,0.052996]
[1735003900284,0.052993,94468.0,94465.0,0.3608]
[1735003900689,0.052993,94468.0,94464.0,0.052995]
[1735003901080,0.052994,94466.0,94462.0,0.003]
[1735003901481,0.052994,94466.0,94462.0,0.001]
[1735003901882,0.052994,94466.0,94460.0,0.052997]
[1735003902082,0.052994,94466.0,94464.0,0.001]
[1735003903593,0.052998,94458.0,94434.0,0.413811]
[1735003903892,0.3608,94465.0,94434.0,0.413811]
[1735003903893,0.3608,94454.0,94442.0,0.053007]
[1735003904283,0.053004,94448.0,94442.0,0.053007]
[1735003904485,0.053005,94447.0,94442.0,0.053007]
[1735003904778,8.35e-05,94446.0,94442.0,0.053007]
[1735003906197,0.0090835,94446.0,94442.0,0.053007]
[1735003906789,0.0553835,94446.0,94442.0,0.053007]
[1735003907291,0.0553835,94446.0,94435.0,0.053011]
[1735003907485,0.053011,94435.0,94434.0,0.3608]
[1735003908798,0.009,94435.0,94421.0,0.335013]
[1735003908991,0.009,94435.0,94429.0,0.053014]
[1735003908992,0.053012,94433.0,94429.0,0.053014]
[1735003909290,0.4109,94434.0,94421.0,0.335013]
[1735003909499,0.053017,94425.0,94421.0,0.388032]
[1735003909694,0.053014,94431.0,94421.0,0.335013]
[1735003909893,0.053014,94431.0,94430.0,0.053014]
[1735003910790,0.057014,94431.0,94430.0,0.053014]
[1735003910990,0.066014,94431.0,94430.0,0.053014]
[1735003911390,0.057014,94431.0,94430.0,0.053014]
[1735003911600,0.066014,94431.0,94430.0,0.053014]
[1735003912586,0.062014,94431.0,94430.0,0.053014]
[1735003912793,0.068014,94431.0,94430.0,0.053014]
[1735003913493,0.3758,94431.0,94417.0,0.3608]
[1735003913698,0.053022,94416.0,94406.0,0.67656263]
[1735003913898,0.05314552,94416.0,94406.0,0.3608]
[1735003914598,0.05314552,94416.0,94405.0,0.31424263]
[1735003915398,0.06214552,94416.0,94398.0,0.053031]
[1735003915702,0.06214552,94416.0,94396.0,0.3608]
[1735003915900,0.06214552,94416.0,94406.0,0.053027]
[1735003917795,0.0757597,94416.0,94406.0,0.053027]
[1735003917993,0.0757597,94416.0,94400.0,0.05303]
[1735003918399,0.0757597,94416.0,94388.0,0.3608]
[1735003918588,0.053024,94411.0,94394.0,0.053034]
[1735003918902,0.3608,94411.0,94395.0,0.053033]
[1735003919200,0.3608,94401.0,94395.0,0.053033]
[1735003919996,0.053033,94397.0,94395.0,0.053033]
[1735003920592,0.053033,94397.0,94395.0,0.054033]
[1735003920992,0.3608,94401.0,94367.0,0.31424263]
[1735003920993,0.053043,94378.0,94367.0,0.31424263]
[1735003921194,0.3608,94377.0,94363.0,0.31424263]
[1735003921694,0.3608,94377.0,94364.0,0.053051]
[1735003922693,0.3608,94377.0,94363.0,0.31424263]
[1735003922900,0.3608,94377.0,94359.0,0.053054]
[1735003923098,0.3608,94366.0,94359.0,0.053054]
[1735003923301,0.41394873,94366.0,94348.0,0.01077562]
[1735003923604,0.053061,94347.0,94343.0,0.053063]
[1735003923801,0.3608,94354.0,94343.0,0.053063]
[1735003923991,0.3608,94354.0,94336.0,0.36658744]
[1735003923992,0.053064,94341.0,94336.0,0.409187]
[1735003924197,0.053064,94341.0,94335.0,0.3608]
[1735003924198,0.3608,94341.0,94332.0,0.31424263]
[1735003924391,0.053068,94334.0,94331.0,0.053069]
[1735003924703,0.413864,94341.0,94320.0,0.10776299]
[1735003924904,0.3608,94341.0,94337.0,0.053066]
[1735003925404,0.3608,94341.0,94316.0,0.36685854]
[1735003925597,0.3608,94341.0,94320.0,0.10776299]
[1735003925798,0.3618,94341.0,94336.0,0.054067]
[1735003927200,0.3618,94341.0,94336.0,0.001]
[1735003927402,0.3608,94341.0,94337.0,0.001]
[1735003928001,0.3618,94341.0,94336.0,0.001]
[1735003928595,0.10776299,94360.0,94336.0,0.001]
[1735003928596,0.3608,94364.0,94337.0,0.001]
[1735003928904,0.3608,94390.0,94365.0,0.05305]
[1735003929112,0.053039,94386.0,94365.0,0.05305]
[1735003929296,0.46856299,94390.0,94365.0,0.05305]
[1735003929604,0.3608,94382.0,94365.0,0.05305]
[1735003930400,0.3608,94390.0,94365.0,0.35305]
[1735003930702,0.3608,94390.0,94387.0,0.053038]
[1735003930901,0.3608,94390.0,94380.0,0.10776299]
[1735003931106,0.36238956,94403.0,94398.0,0.053032]
[1735003931296,0.41541856,94403.0,94391.0,0.053036]
[1735003931493,9.205e-05,94402.0,94393.0,0.053034]
[1735003931905,9.205e-05,94402.0,94395.0,0.053033]
[1735003933704,0.05303,94401.0,94395.0,0.054033]
[1735003934106,9.205e-05,94402.0,94395.0,0.002]
[1735003934499,9.205e-05,94402.0,94401.0,0.05303]
[1735003936005,0.00109205,94402.0,94401.0,0.05903]
[1735003936310,0.053033,94396.0,94395.0,0.001]
[1735003936508,0.413833,94396.0,94395.0,0.001]
[1735003936704,0.413833,94396.0,94372.0,0.3608]
[1735003936705,0.3608,94396.0,94380.0,0.10776299]
[1735003937008,0.3608,94396.0,94393.0,0.053034]
[1735003937402,0.05303,94401.0,94393.0,0.053034]
[1735003937806,0.05303,94401.0,94394.0,0.053034]
[1735003938011,0.009,94396.0,94394.0,0.053034]
[1735003938697,0.015,94396.0,94382.0,0.3608]
[1735003939013,0.015,94396.0,94391.0,0.053036]
[1735003939410,0.006,94396.0,94393.0,0.001]
[1735003939705,0.053034,94395.0,94393.0,0.001]
[1735003939913,0.053034,94395.0,94388.0,0.053037]
[1735003940500,0.053034,94395.0,94389.0,0.053037]
[1735003940711,0.053034,94395.0,94393.0,0.001]
[1735003941214,0.062034,94395.0,94389.0,0.053037]
[1735003941607,0.067034,94395.0,94389.0,0.053037]
[1735003941809,0.014,94395.0,94389.0,0.053037]
[1735003942002,0.053035,94393.0,94389.0,0.053037]
[1735003943408,0.062035,94393.0,94389.0,0.053037]
[1735003944014,0.068035,94393.0,94389.0,0.053037]
[1735003944417,0.3608,94390.0,94375.0,0.0105801]
[1735003944715,0.053049,94368.0,94361.0,0.053052]
[1735003944920,0.3608,94376.0,94350.0,0.10776299]
[1735003944921,0.3608,94367.0,94362.0,0.25156926]
[1735003945110,0.05305,94366.0,94362.0,0.25156926]
[1735003945507,0.3608,94367.0,94362.0,0.25156926]
[1735003945816,0.3608,94367.0,94363.0,0.053051]
[1735003946315,0.007,94366.0,94363.0,0.053051]
[1735003946616,0.007,94366.0,94365.0,0.053051]
[1735003946815,0.3608,94367.0,94365.0,0.053051]
[1735003947114,0.011,94367.0,94365.0,0.053051]
[1735003947716,0.004,94366.0,94365.0,0.053051]
[1735003948514,0.008,94366.0,94365.0,0.053051]
[1735003950310,0.012,94366.0,94365.0,0.053051]
[1735003951115,0.008,94366.0,94365.0,0.053051]
[1735003951316,0.012,94366.0,94365.0,0.053051]
[1735003955021,0.013,94366.0,94365.0,0.053051]
[1735003955423,0.004,94366.0,94365.0,0.053051]
[1735003955613,0.013,94366.0,94365.0,0.053051]
[1735003955919,0.013,94366.0,94359.0,0.3712903]
[1735003956221,0.013,94366.0,94362.0,0.053052]
[1735003956424,0.013,94366.0,94363.0,0.053051]
[1735003956811,0.013,94366.0,94355.0,0.053056]
[1735003957020,0.0554,94365.0,94356.0,0.053055]
[1735003957414,0.0554,94365.0,94357.0,0.053055]
[1735003957614,0.108451,94365.0,94357.0,0.053055]
[1735003957825,0.053052,94362.0,94351.0,0.25156926]
[1735003958524,0.3608,94359.0,94351.0,0.25156926]
[1735003958916,0.3608,94359.0,94353.0,0.053057]
[1735003959624,0.413854,94359.0,94353.0,0.053057]
[1735003959927,0.422854,94359.0,94353.0,0.053057]
[1735003960315,0.426854,94359.0,94353.0,0.053057]
[1735003960523,0.3738,94359.0,94349.0,0.36705059]
[1735003960830,0.053057,94354.0,94349.0,0.35624]
[1735003961214,0.3738,94359.0,94349.0,0.35624]
[1735003961215,0.053059,94351.0,94349.0,0.35624]
[1735003961528,0.053061,94347.0,94339.0,0.61380926]
[1735003962527,0.053061,94347.0,94339.0,0.36224]
[1735003962721,0.053061,94347.0,94339.0,0.3608]
[1735003963922,0.056061,94347.0,94334.0,0.053068]
[1735003964125,0.063061,94347.0,94334.0,0.053068]
[1735003964527,0.01,94347.0,94345.0,0.053062]
[1735003964733,0.01,94347.0,94337.0,0.10776299]
[1735003965030,0.01,94347.0,94340.0,0.053064]
[1735003965233,0.01,94347.0,94332.0,0.053069]
[1735003965532,0.01,94347.0,94325.0,0.25156926]
[1735003965728,0.01,94347.0,94330.0,0.10776299]
[1735003965931,0.01,94347.0,94330.0,0.05307]
[1735003966232,0.01,94347.0,94330.0,0.10776299]
[1735003966433,0.01,94347.0,94335.0,0.053067]
[1735003966634,0.01,94347.0,94330.0,0.10776299]
[1735003966935,0.01,94347.0,94338.0,0.053065]
[1735003967439,0.053065,94340.0,94338.0,0.053065]
[1735003967738,0.01,94347.0,94346.0,0.053061]
[1735003968640,0.003,94347.0,94346.0,0.053061]
[1735003968943,0.003,94347.0,94340.0,0.053064]
[1735003969237,0.01,94347.0,94338.0,0.3608]
[1735003969636,0.053064,94342.0,94338.0,0.3608]
[1735003970139,0.007,94347.0,94340.0,0.3608]
[1735003970345,0.007,94347.0,94346.0,0.053061]
[1735003971733,0.01,94347.0,94346.0,0.053061]
[1735003971932,0.007,94347.0,94346.0,0.053061]
[1735003972545,0.007,94347.0,94340.0,0.3608]
[1735003972546,0.01,94347.0,94340.0,0.3608]
[1735003972935,0.01,94347.0,94339.0,0.053065]
[1735003973135,0.01,94347.0,94340.0,0.053064]
[1735003973544,0.007,94347.0,94340.0,0.053064]
[1735003973742,0.009,94347.0,94340.0,0.053064]
[1735003974143,0.062061,94347.0,94340.0,0.053064]
[1735003974434,0.006,94347.0,94333.0,0.25156926]
[1735003974747,0.053068,94334.0,94325.0,0.31424263]
[1735003974950,0.413872,94326.0,94325.0,0.31424263]
[1735003976038,0.416872,94326.0,94325.0,0.31424263]
[1735003976244,0.41697666,94326.0,94325.0,0.07154263]
[1735003976650,0.053078,94316.0,94311.0,0.05308]
[1735003976845,0.3608,94312.0,94311.0,0.05308]
[1735003982049,0.00010466,94326.0,94325.0,0.053073]
[1735003982348,0.15829328,94335.0,94334.0,0.053068]
[1735003983145,0.15837951,94335.0,94334.0,0.053068]
[1735003983550,8.623e-05,94335.0,94334.0,0.053068]
[1735003984041,0.00408623,94335.0,94326.0,0.01079132]
[1735003984249,0.05715323,94335.0,94325.0,0.3608]
[1735003984458,0.06615323,94335.0,94330.0,0.05307]
[1735003985260,0.17569445,94391.0,94330.0,0.05307]
[1735003985261,0.15829328,94357.0,94341.0,0.053064]
[1735003985453,0.15829328,94357.0,94347.0,0.10776299]
[1735003985760,0.15829328,94357.0,94355.0,0.053055]
[1735003986256,7.298e-05,94356.0,94355.0,0.053055]
[1735003987254,7.298e-05,94356.0,94344.0,0.37162098]
[1735003987255,7.298e-05,94356.0,94344.0,0.3608]
[1735003987459,0.00507298,94356.0,94344.0,0.3608]
[1735003987655,0.01407298,94356.0,94355.0,0.001]
[1735003988557,0.01407298,94356.0,94354.0,0.053056]
[1735003988763,0.00407298,94356.0,94354.0,0.053056]
[1735003989753,0.00707298,94356.0,94354.0,0.053056]
[1735003990152,0.00307298,94356.0,94354.0,0.053056]
[1735003990348,0.00907298,94356.0,94355.0,0.001]
[1735003990551,0.01207298,94356.0,94355.0,0.001]
[1735003990749,0.00307298,94356.0,94354.0,0.053056]
[1735003990963,0.00159004,94368.0,94367.0,0.053049]
[1735003993355,0.053051,94365.0,94363.0,0.3608]
[1735003993566,0.00859004,94368.0,94363.0,0.413851]
[1735003993763,0.01759004,94368.0,94367.0,0.001]
[1735003995064,0.01059004,94368.0,94367.0,0.001]
[1735003996064,0.0271157,94368.0,94367.0,0.002]
[1735003996264,0.0271157,94368.0,94367.0,0.001]
[1735003996461,0.01659004,94368.0,94367.0,0.001]
[1735003996870,0.01659004,94368.0,94367.0,0.002]
[1735004004779,0.053059,94349.0,94340.0,0.3608]
[1735004005074,0.413859,94349.0,94337.0,0.053066]
[1735004005871,0.415859,94349.0,94336.0,0.20077229]
[1735004006068,0.420859,94349.0,94341.0,0.053064]
[1735004006977,0.424859,94349.0,94348.0,0.00258979]
[1735004008070,0.422859,94349.0,94348.0,0.00258979]
[1735004008267,0.428859,94349.0,94348.0,0.00258979]
[1735004008465,0.015,94349.0,94348.0,0.00258979]
[1735004009272,0.015,94349.0,94348.0,0.05518979]
[1735004009873,0.006,94349.0,94348.0,0.05418979]
[1735004010083,0.015,94349.0,94348.0,0.05518979]
[1735004011984,0.015,94349.0,94348.0,0.06575396]
[1735004012282,0.015,94349.0,94348.0,0.25571325]
[1735004013383,0.015,94349.0,94348.0,0.06575396]
[1735004018289,0.015,94349.0,94348.0,0.00258979]
[1735004022080,0.068059,94349.0,94348.0,0.00258979]
[1735004025588,0.015,94349.0,94348.0,0.05564979]
[1735004034992,0.11018766,94349.0,94348.0,0.05564979]
[1735004036096,0.015,94349.0,94348.0,0.05564979]
[1735004038297,0.06806,94349.0,94348.0,0.00258979]
[1735004038598,0.06806,94349.0,94347.0,0.25427906]
[1735004038800,0.0489,94348.0,94347.0,0.25427906]
[1735004039000,0.05553296,94348.0,94347.0,0.17387906]
[1735004039188,0.35553296,94348.0,94341.0,0.31650314]
[1735004039387,0.413864,94342.0,94341.0,0.12760314]
[1735004039592,0.42049696,94342.0,94341.0,0.12760314]
[1735004040202,0.053069,94332.0,94331.0,0.19085353]
[1735004041796,0.053075,94322.0,94320.0,0.19085353]
[1735004042701,0.053075,94322.0,94320.0,0.24392953]
[1735004043001,0.19031176,94339.0,94337.0,0.053066]
[1735004043201,0.19031176,94339.0,94338.0,0.461]
[1735004044199,0.19831176,94339.0,94338.0,0.461]
[1735004044507,0.008,94339.0,94338.0,0.461]
[1735004044707,0.09510796,94340.0,94338.0,0.461]
[1735004045008,0.09510796,94340.0,94339.0,0.053065]
[1735004045402,0.12681062,94345.0,94344.0,0.053062]
[1735004045704,0.12681062,94348.0,94347.0,0.053061]
[1735004046005,0.12681062,94348.0,94347.0,0.413861]
[1735004046200,0.04641062,94348.0,94347.0,0.413861]
[1735004046404,0.15851328,94354.0,94353.0,0.053057]
[1735004046593,0.15851328,94361.0,94354.0,0.053056]
[1735004046797,0.15851328,94361.0,94355.0,0.053056]
[1735004046998,0.053055,94357.0,94355.0,0.053056]
[1735004048007,0.053055,94357.0,94355.0,0.062056]
[1735004049001,0.053055,94357.0,94355.0,0.009]
[1735004049509,0.054055,94357.0,94355.0,0.013]
[1735004050098,0.055055,94357.0,94355.0,0.013]
[1735004052500,0.06559164,94357.0,94355.0,0.013]
[1735004057007,0.055055,94357.0,94355.0,0.013]
[1735004058206,0.002,94357.0,94355.0,0.066056]
[1735004059202,0.002,94357.0,94355.0,0.426856]
[1735004059403,0.002,94357.0,94355.0,0.066056]
[1735004059610,0.053055,94356.0,94355.0,0.013]
[1735004060714,0.054055,94356.0,94355.0,0.013]
[1735004061700,0.055055,94356.0,94355.0,0.013]
[1735004061913,0.055055,94356.0,94355.0,0.066056]
[1735004062113,0.002,94356.0,94355.0,0.066056]
[1735004063607,0.002,94356.0,94355.0,0.426856]
[1735004063810,0.19031176,94373.0,94365.0,0.05305]
[1735004064005,0.00663302,94381.0,94369.0,0.3608]
[1735004064205,0.64613157,94399.0,94380.0,0.3608]
[1735004064407,0.64613157,94399.0,94385.0,0.053039]
[1735004065118,0.22192456,94402.0,94392.0,0.053035]
[1735004065418,0.053032,94397.0,94392.0,0.413835]
[1735004066422,0.22192456,94402.0,94392.0,0.3608]
[1735004066621,0.23422769,94409.0,94399.0,0.053031]
[1735004066622,0.053029,94403.0,94399.0,0.053031]
[1735004067323,0.06343852,94409.0,94393.0,0.0531]
[1735004067618,0.053026,94408.0,94401.0,0.05303]
[1735004068521,0.053023,94414.0,94407.0,0.053026]
[1735004068714,0.14066904,94418.0,94407.0,0.053026]
[1735004069016,0.053024,94412.0,94407.0,0.053026]
[1735004070019,0.01325192,94415.0,94403.0,0.352826]
[1735004070722,0.053034,94393.0,94384.0,0.19085353]
[1735004070921,0.053034,94393.0,94386.0,0.106638]
[1735004071521,1.32,94395.0,94386.0,0.106638]
[1735004071725,0.053036,94390.0,94386.0,0.106638]
[1735004072416,0.053036,94390.0,94386.0,0.0536]
[1735004072617,0.053036,94390.0,94387.0,0.053037]
[1735004073421,0.053037,94389.0,94387.0,0.053037]
[1735004074419,0.053037,94389.0,94387.0,0.009]
[1735004074724,0.3608,94388.0,94387.0,0.013]
[1735004074918,0.3608,94388.0,94387.0,0.004]
[1735004075225,0.3608,94388.0,94387.0,0.009]
[1735004075424,0.3608,94388.0,94387.0,0.013]
[1735004076225,0.3608,94388.0,94387.0,0.014]
[1735004076425,0.3608,94388.0,94387.0,0.005]
[1735004076621,0.3608,94388.0,94387.0,0.014]
[1735004078231,0.3608,94388.0,94387.0,0.009]
[1735004078523,0.3608,94388.0,94387.0,0.013]
[1735004078723,0.053034,94395.0,94393.0,0.053034]
[1735004079331,0.053034,94395.0,94394.0,0.0537]
[1735004079525,0.3608,94396.0,94395.0,0.053033]
[1735004079732,0.05303,94402.0,94401.0,0.05303]
[1735004080232,0.053026,94409.0,94403.0,0.053029]
[1735004080421,0.3608,94416.0,94400.0,0.3608]
[1735004080622,0.05461163,94415.0,94409.0,0.053025]
[1735004080816,0.00158963,94415.0,94414.0,0.053023]
[1735004082731,0.00158963,94415.0,94411.0,0.3608]
[1735004083133,0.00158963,94415.0,94414.0,0.007]
[1735004083332,0.00158963,94415.0,94414.0,0.01]
[1735004083922,0.00158963,94415.0,94411.0,0.2968]
[1735004084230,0.00158963,94415.0,94411.0,0.3068]
[1735004085629,0.00158963,94415.0,94411.0,0.2998]
[1735004085825,0.05561163,94415.0,94414.0,0.007]
[1735004086031,0.41641163,94415.0,94414.0,0.007]
[1735004086224,0.053024,94412.0,94411.0,0.003]
[1735004086438,0.053024,94412.0,94411.0,0.01]
[1735004086829,0.053024,94412.0,94411.0,0.003]
[1735004087032,0.053024,94412.0,94407.0,0.053027]
[1735004087534,0.054024,94412.0,94411.0,0.007]
[1735004088820,0.054024,94412.0,94411.0,0.01]
[1735004089026,0.001,94412.0,94411.0,0.01]
[1735004090130,0.00158963,94415.0,94413.0,0.053023]
[1735004091533,0.00258963,94415.0,94413.0,0.060023]
[1735004091936,0.00258963,94415.0,94413.0,0.07037057]
[1735004092537,0.00258963,94415.0,94413.0,0.07237057]
[1735004095235,0.00258963,94415.0,94413.0,0.062023]
[1735004098335,0.00258963,94415.0,94413.0,0.009]
[1735004098531,0.05561263,94415.0,94413.0,0.009]
[1735004098931,0.053031,94400.0,94399.0,0.12585353]
[1735004099131,0.413831,94400.0,94399.0,0.12585353]
[1735004100433,0.3698,94400.0,94399.0,0.001]
[1735004100741,0.422831,94400.0,94399.0,0.001]
[1735004100937,0.429831,94400.0,94399.0,0.002]
[1735004101344,0.4404261,94400.0,94399.0,0.002]
[1735004101533,0.053041,94382.0,94373.0,0.30628654]
[1735004101738,0.413841,94382.0,94371.0,0.25324054]
[1735004103137,0.413841,94382.0,94370.0,0.35636]
[1735004103540,0.422841,94382.0,94381.0,0.00112061]
[1735004104240,0.429841,94382.0,94381.0,0.00112061]
[1735004104634,0.420841,94382.0,94381.0,0.00012061]
[1735004104840,0.429841,94382.0,94381.0,6.1e-07]
[1735004105549,0.44069257,94382.0,94381.0,6.1e-07]
[1735004105942,0.44081318,94382.0,94381.0,6.1e-07]
[1735004106448,0.5901699,94382.0,94359.0,0.0528]
[1735004106649,0.3608,94360.0,94359.0,0.0528]
[1735004107250,0.3608,94360.0,94359.0,0.105854]
[1735004108241,0.3748,94360.0,94359.0,0.106854]
[1735004109260,0.014,94360.0,94359.0,0.106854]
[1735004112970,0.013,94360.0,94359.0,0.105854]
[1735004116067,0.013,94360.0,94359.0,0.0528]
[1735004116265,0.013,94360.0,94351.0,0.0514]
[1735004116456,0.053054,94359.0,94341.0,0.152164]
[1735004116660,0.05306,94349.0,94341.0,0.152164]
[1735004117254,0.013,94360.0,94341.0,0.0991]
[1735004117462,0.053063,94342.0,94341.0,0.0991]
[1735004117758,0.053063,94342.0,94341.0,0.0507]
[1735004117759,0.05317722,94342.0,94341.0,0.0507]
[1735004117959,0.05317722,94342.0,94340.0,0.00158996]
[1735004119773,0.05417722,94342.0,94340.0,0.00158996]
[1735004120259,0.05317722,94342.0,94340.0,0.00158996]
[1735004120463,0.06617722,94342.0,94340.0,0.00158996]
[1735004122262,0.01311422,94342.0,94340.0,0.00158996]
[1735004123464,0.01311422,94342.0,94340.0,0.05465396]
[1735004124776,0.00511422,94342.0,94340.0,0.05465396]
[1735004124973,0.01311422,94342.0,94340.0,0.05465396]
[1735004125878,0.00811422,94342.0,94340.0,0.05465396]
[1735004126177,0.01311422,94342.0,94340.0,0.05465396]
[1735004126674,0.01311422,94342.0,94340.0,0.00158996]
[1735004126675,0.053064,94341.0,94340.0,0.00158996]
[1735004127574,0.053064,94341.0,94328.0,9.567e-05]
[1735004127575,0.053071,94329.0,94328.0,9.567e-05]
[1735004127768,0.413871,94329.0,94328.0,9.567e-05]
[1735004128570,0.774671,94329.0,94328.0,9.567e-05]
[1735004129682,0.781671,94329.0,94328.0,9.567e-05]
[1735004132082,0.053083,94307.0,94304.0,0.053085]
[1735004133479,0.054083,94307.0,94304.0,0.053085]
[1735004133876,0.001,94307.0,94303.0,0.0551]
[1735004134076,0.053084,94306.0,94303.0,0.0551]
[1735004134680,0.001,94307.0,94305.0,0.3608]
[1735004134883,0.1266765,94329.0,94305.0,0.3608]
[1735004135197,0.1266765,94329.0,94328.0,0.053071]
[1735004135375,0.1266765,94329.0,94326.0,0.3608]
[1735004135376,0.053065,94340.0,94329.0,0.05307]
[1735004135580,0.00011422,94342.0,94330.0,0.15880865]
[1735004135778,0.053066,94338.0,94330.0,0.15880865]
[1735004136282,0.3608,94340.0,94330.0,0.0508]
[1735004136477,0.053067,94337.0,94330.0,0.0508]
[1735004137982,0.011,94338.0,94327.0,0.0517]
[1735004138284,0.011,94338.0,94326.0,0.3608]
[1735004138285,0.053074,94323.0,94315.0,0.053079]
[1735004138588,0.053074,94323.0,94316.0,0.25284033]
[1735004139882,0.413875,94322.0,94316.0,0.25284033]
[1735004140079,0.3608,94322.0,94314.0,0.3608]
[1735004140387,0.053078,94317.0,94310.0,0.32078965]
[1735004140579,0.053078,94316.0,94310.0,0.32078965]
[1735004140776,0.3608,94322.0,94310.0,0.26770865]
[1735004140989,0.053081,94312.0,94310.0,0.1055]
[1735004141178,0.053081,94312.0,94310.0,0.0524]
[1735004142284,0.053084,94306.0,94301.0,0.35636]
[1735004142485,0.005,94312.0,94301.0,0.35636]
[1735004142689,0.012,94312.0,94301.0,0.35636]
[1735004142888,0.053086,94302.0,94301.0,0.35636]
[1735004143278,0.053086,94302.0,94300.0,0.1]
[1735004143484,0.00012219,94301.0,94300.0,0.1]
[1735004145287,0.00312219,94301.0,94300.0,0.1]
[1735004146281,0.00612219,94301.0,94300.0,0.1]
[1735004165204,0.00612219,94301.0,94300.0,0.153087]
[1735004168989,0.10128315,94301.0,94300.0,0.153087]
[1735004170190,0.01888315,94301.0,94300.0,0.153087]
[1735004170396,0.12686333,94306.0,94305.0,0.053084]
[1735004170794,0.12686333,94309.0,94308.0,0.053082]
[1735004171102,0.12686333,94309.0,94308.0,0.413882]
[1735004171299,0.12695742,94309.0,94308.0,0.413882]
[1735004171794,9.409e-05,94309.0,94308.0,0.413882]
[1735004172198,0.00409409,94309.0,94308.0,0.413882]
[1735004173389,0.00709409,94309.0,94308.0,0.413882]
[1735004173995,0.12686333,94321.0,94320.0,0.053076]
[1735004174201,0.12686333,94321.0,94320.0,0.413876]
[1735004174394,0.12686333,94321.0,94314.0,0.053079]
[1735004174591,0.053081,94310.0,94308.0,0.32648646]
[1735004174791,0.004,94309.0,94308.0,0.31605042]
[1735004175400,0.413879,94315.0,94308.0,0.31605042]
[1735004175695,0.002,94309.0,94308.0,0.36913242]
[1735004176092,0.007,94309.0,94308.0,0.053082]
[1735004176689,0.005,94309.0,94308.0,0.053082]
[1735004176890,0.008,94309.0,94308.0,0.053082]
[1735004177596,0.003,94309.0,94308.0,0.053082]
[1735004178102,0.003,94309.0,94307.0,0.0509]
[1735004178103,0.056082,94309.0,94307.0,0.0509]
[1735004178294,0.060082,94309.0,94307.0,0.0509]
[1735004178791,0.056082,94309.0,94308.0,0.001]
[1735004178997,0.061082,94309.0,94308.0,0.001]
[1735004179193,0.058082,94309.0,94308.0,0.001]
[1735004179502,0.067082,94309.0,94307.0,0.0529]
[1735004180296,0.014,94309.0,94307.0,0.105983]
[1735004180895,0.014,94309.0,94307.0,0.104983]
[1735004181403,0.005,94309.0,94307.0,0.104983]
[1735004181602,0.014,94309.0,94308.0,0.001]
[1735004182397,0.014,94309.0,94307.0,0.104983]
[1735004183104,0.014,94309.0,94308.0,0.001]
[1735004184608,0.14086333,94309.0,94308.0,0.001]
[1735004184809,0.13586333,94309.0,94300.0,0.1]
[1735004185107,0.19394533,94309.0,94307.0,0.001]
[1735004185499,0.19394533,94309.0,94302.0,0.053086]
[1735004185801,0.19394533,94309.0,94308.0,0.001]
[1735004186400,0.19394533,94309.0,94307.0,0.001]
[1735004186599,0.3608,94308.0,94307.0,0.001]
[1735004187907,0.3608,94308.0,94304.0,0.053084]
[1735004188306,0.053086,94301.0,94300.0,0.1]
[1735004189508,0.057086,94301.0,94300.0,0.1]
[1735004190905,0.063086,94301.0,94300.0,0.1]
[1735004191100,0.3708,94301.0,94285.0,0.25412988]
[1735004191413,0.053095,94286.0,94285.0,0.25412988]
[1735004191610,0.413895,94286.0,94285.0,0.25412988]
[1735004192621,0.413895,94286.0,94285.0,0.00782988]
[1735004193411,0.053107,94264.0,94263.0,0.0505]
[1735004193618,0.413907,94264.0,94263.0,0.0505]
[1735004194318,0.41400898,94264.0,94263.0,0.0505]
[1735004194712,0.41500898,94264.0,94263.0,0.0505]
[1735004197109,0.41600898,94264.0,94263.0,0.0505]
[1735004199019,0.05520898,94264.0,94263.0,0.0505]
[1735004205517,0.053109,94261.0,94252.0,0.0495]
[1735004205717,0.3608,94253.0,94252.0,0.0495]